Cogmind - Beta 15 @@@ ROGUE MODE // 2025.07.26 @ 23:04:14 Player: ranter Result: Destroyed by D-53 Grenadier with Mini Grenade Launcher Performance ------------- Evolutions (0) 0 Regions Visited (2) 400 Robots Destroyed (13) 65 Value Destroyed (325) 325 Prototype IDs (5) 100 Alien Tech Used (0) 0 Bonus (0) 0 TOTAL SCORE: 890 Bonus ------- None Cogmind --------- Core Integrity 0/250 Matter 179/300 Energy 125/125 System Corruption 0% Temperature Cool (0) Movement Walking (120) Location -10/Mines Parts ------- > --- POWER (1) -------- Light Ion Engine > --- PROPULSION (2) --- Aluminum Leg Aluminum Leg > --- UTILITY (2) ------ Improved Heat Sink Structural Scanner > --- WEAPON (2) ------- Small Laser Assault Rifle > --- INVENTORY (5) ---- Light Ion Engine Flight Unit Assault Rifle Grenade Launcher Peak State ------------ > --- POWER ------------ Light Ion Engine > --- PROPULSION ------- Aluminum Leg Aluminum Leg > --- UTILITY ---------- Improved Heat Sink Small Storage Unit > --- WEAPON ----------- Assault Rifle Grenade Launcher > --- INVENTORY -------- Light Ion Engine Hover Unit Flight Unit Seismic Detector Small Laser [Rating: 9] Favorites ----------- Power Light Ion Engine Engine Light Ion Engine Propulsion Aluminum Leg Leg Aluminum Leg Hover Unit Hover Unit Flight Unit Flight Unit Utility Small Storage Unit Device Improved Heat Sink Storage Small Storage Unit Protection Power Shielding Weapon Assault Rifle Energy Gun Small Laser Ballistic Gun Assault Rifle Launcher Grenade Launcher Build | -11 -10 -10 ------- Run | Yrd Mat Min Slots Evolved . | . . . Power . | . . . Propulsion . | . . . Utility . | . . . Weapon . | . . . Parts Attached 18 | 6 12 . Power 2 | 1 1 . Engine 2 | 1 1 . Core . | . . . Reactor . | . . . Propulsion 6 | 2 4 . Treads . | . . . Leg 3 | 2 1 . Wheel . | . . . Hover 1 | . 1 . Flight 2 | . 2 . Utility 5 | 1 4 . Device 3 | . 3 . Storage 1 | 1 . . Processor . | . . . Hackware . | . . . Protection 1 | . 1 . Artifact . | . . . Weapon 5 | 2 3 . Energy Gun 2 | 1 1 . Energy Cannon . | . . . Ballistic Gun 2 | 1 1 . Ballistic Cannon . | . . . Launcher 1 | . 1 . Special Weapon . | . . . Impact Weapon . | . . . Slashing Weapon . | . . . Piercing Weapon . | . . . Special Melee Weapon . | . . . Unidentified Prototypes . | . . . Parts Lost 2 | . 1 1 Power . | . . . Propulsion 2 | . 1 1 Utility . | . . . Weapon . | . . . Highest Loss Streak 1 | . 1 1 To Critical Strikes . | . . . Average Backups 5 | 2 6 4 Power 1 | . 1 1 Propulsion 1 | . 1 1 Utility . | . . . Weapon 2 | . 2 2 Tool/Special . | . . . Unused Backups 5 | . 4 1 Power 1 | . 1 . Propulsion 3 | . 3 . Utility . | . . . Weapon 1 | . . 1 Tool/Special . | . . . Average Slot Usage (%) 97 | . 96 100 Engine 14 | . 14 14 Leg 22 | . 24 5 Flight 5 | . 3 22 Device 7 | . 5 28 Storage 10 | . 11 . Protection 7 | . 8 . Energy Gun 5 | . 4 14 Ballistic Gun 19 | . 20 14 Launcher 2 | . 2 . Peak Build Rating 9 | 6 9 9 Average Rating 7 | 3 7 8 On Entrance 5 | . 6 9 Naked Turns . | . . . Heaviest Build 14 | 12 14 8 Greatest Support 20 | 20 20 10 Greatest Overweight (x) . | . . . Average Overweight (x) . | . . . Largest Inventory Capacity 8 | 8 8 5 Average Capacity 7 | 7 7 5 Most Carried 8 | 6 8 5 Average Carried 5 | 2 6 4 Final Capacity 8 | 8 5 5 Final Carried 5 | 4 5 4 Class Distribution -------------------- 100% | Mutant Dominant Class ---------------- Mutant | -10/Materials Mutant | -10/Mines Resources | -11 -10 -10 ----------- Run | Yrd Mat Min Matter Collected 428 | 214 214 . Remotely . | . . . Salvage Created 365 | . 365 . Parts 17 | . 17 . Haulers Intercepted . | . . . Recyclers Shooed . | . . . Parts Field Recycled . | . . . Retrieved Matter . | . . . Parts Self-Destructed . | . . . Prevented . | . . . Kills | -11 -10 -10 ------- Run | Yrd Mat Min Combat Hostiles Destroyed 9 | . 9 . Guns 5 | . 5 . AOE 4 | . 4 . Classes Destroyed 5 | . 5 . Tunneler 1 | . 1 . Recycler 1 | . 1 . Watcher 2 | . 2 . Swarmer 3 | . 3 . Grunt 6 | . 6 . Best Kill Streak 4 | . 4 . Combat Bots Only 3 | . 3 . Max Kills in Single Turn 2 | . 2 . Gunslinging . | . . . Exploded 2 | . 2 . Melee . | . . . Uniques/NPCs Destroyed . | . . . Combat | -11 -10 -10 -------- Run | Yrd Mat Min Hostile Shots Fired 46 | . 35 11 Missed 12 | . 9 3 Hits 34 | . 26 8 Projectile 34 | . 26 8 AOE 4 | . . 4 Critical Strikes 2 | . 2 . Actively Blocked 1 | . 1 . Part Disruptions 3 | . . 3 Damage Taken 780 | . 523 257 Core 269 | . 190 79 Absorbed by Shields . | . . . Redirected to Shielding 5 | . 5 . Core Remaining (%) 100 | 100 . . Volleys Fired 44 | . 34 10 Largest 2 | . 2 2 Hottest 70 | . 70 60 Shots Fired 76 | . 64 12 Gun 72 | . 60 12 Cannon . | . . . Launcher 4 | . 4 . Special . | . . . Kinetic 54 | . 44 10 Thermal 18 | . 16 2 Explosive 4 | . 4 . Electromagnetic . | . . . Robot Hit Streak 9 | . 9 1 Robot Miss Streak 8 | . 8 2 Penetration Max . | . . . Secondary Targets . | . . . Shots Hit Robots 41 | . 37 4 Core Hits 22 | . 22 . Critical Kills . | . . . Critical Parts Destroyed 3 | . 2 1 Critical Strikes 4 | . 3 1 Burn 1 | . 1 . Destroy 3 | . 2 1 Melee Attacks . | . . . Impact . | . . . Slashing . | . . . Piercing . | . . . Sneak Attacks . | . . . Combat Hostiles . | . . . Follow-up Attacks . | . . . Damage Inflicted 921 | . 865 56 Guns 547 | . 491 56 Cannons . | . . . Explosions 374 | . 374 . Melee . | . . . Ramming . | . . . Kinetic 414 | . 358 56 Thermal 239 | . 239 . Explosive 268 | . 268 . Electromagnetic . | . . . Impact . | . . . Slashing . | . . . Piercing . | . . . Highest Corruption . | . . . Average Corruption . | . . . Corruption Purged . | . . . Corruption Blocked . | . . . Overload Shots . | . . . Overflow Damage 78 | . 78 . Projectiles . | . . . Explosions 78 | . 78 . Melee . | . . . Knockbacks . | . . . Impact . | . . . Kinetic . | . . . Secondary . | . . . Self-Inflicted Damage 191 | . 191 . Shots 2 | . 2 . Rammed . | . . . Targets Rammed . | . . . Kicked . | . . . Crushed . | . . . Highest Temperature 156 | . 156 8 Average Temperature 73 | . 75 8 Received Heat Transfer 275 | . 195 80 Siege Activations . | . . . Martial Activations . | . . . Shielding Activations . | . . . Robots Disrupted . | . . . Combat Hostiles . | . . . Robots Corrupted . | . . . Combat Hostiles . | . . . Parts Fried . | . . . Impact Corruptions . | . . . Robots Melted . | . . . Combat Hostiles . | . . . Parts Melted 1 | . 1 . Heat Transferred 545 | . 545 . Parts Sabotaged . | . . . Parts Stolen . | . . . Parts Stripped . | . . . Power Chain Reactions . | . . . Alert | -11 -10 -10 ------- Run | Yrd Mat Min Maximum Alert Level . | . . . Low Security (%) 100 | 100 100 100 Level 1 . | . . . Level 2 . | . . . Level 3 . | . . . Level 4 . | . . . Level 5 . | . . . High Security . | . . . Max Security . | . . . Peak Influence 181 | . 181 59 Initial 59 | . . 59 Average 67 | . 78 35 Influence Increases 411 | . 411 . Destroy 0b10 Robot/C 180 | . 180 . Destroy 0b10 Robot/NC 20 | . 20 . Destroy Leader 34 | . 34 . Successful Hack 43 | . 43 . Disable Machine 30 | . 30 . Destroy Structure 59 | . 59 . Lose Combat Pursuer 45 | . 45 . Influence Decreases 411 | . 258 153 Entered New Map 94 | . . 94 Time Decay 297 | . 248 49 Lost Part 20 | . 10 10 Squads Dispatched 1 | . 1 . Investigation 1 | . 1 . Extermination . | . . . Reinforcement . | . . . Assault . | . . . Garrison . | . . . Intercept . | . . . Searches Triggered . | . . . Construction Impeded . | . . . Haulers Reinforced . | . . . Active Scanning Responses . | . . . Cargo Convoy Interrupts . | . . . Stealth | -11 -10 -10 --------- Run | Yrd Mat Min Distress Signals 1 | . 1 . Communications Jammed . | . . . Distress Signals . | . . . Times Spotted 41 | . 18 23 Peak Tracking Total 20 | . 5 20 Tactical Retreats 2 | . 1 1 Traps | -11 -10 -10 ------- Run | Yrd Mat Min Traps Triggered 1 | . 1 . Indirectly . | . . . Trap Hack Attempts . | . . . Triggered . | . . . Disarmed . | . . . Reprogrammed . | . . . Reused . | . . . Traps Extracted . | . . . Installed . | . . . Triggered . | . . . Machines | -11 -10 -10 ---------- Run | Yrd Mat Min Machines Disabled 2 | . 2 . Max in Single Turn 2 | . 2 . Machines Repaired . | . . . Machines Dismantled . | . . . Machines Sabotaged . | . . . Overloaded Fab Kills . | . . . Hacking | -11 -10 -10 --------- Run | Yrd Mat Min Machines Accessed 8 | . 8 . Terminals 7 | . 7 . Fabricators . | . . . Repair Stations . | . . . Recycling Units 1 | . 1 . Scanalyzers . | . . . Garrison Access . | . . . Total Hacks 23 | . 23 . Successful 15 | . 15 . Failed 8 | . 8 . Catastrophic 2 | . 2 . Database Lockouts . | . . . Manual 3 | . 3 . Terminals 20 | . 20 . Fabricators . | . . . Repair Stations . | . . . Recycling Units 3 | . 3 . Scanalyzers . | . . . Garrison Access . | . . . Terminal Hacks 12 | . 12 . Record 2 | . 2 . Prototype ID Bank 3 | . 3 . Branch Access Points 1 | . 1 . Emergency Access Points 1 | . 1 . Alert Level 1 | . 1 . Locate Traps 1 | . 1 . Maintenance Status 1 | . 1 . Hauler Manifests 1 | . 1 . Registered Components 1 | . 1 . Fabricator Hacks . | . . . Repair Station Hacks . | . . . Recycling Unit Hacks 3 | . 3 . Process 1 | . 1 . Report Inventory 1 | . 1 . Retrieve Matter 1 | . 1 . Scanalyzer . | . . . Garrison Access Hacks . | . . . Unauthorized Hacks . | . . . Terminals . | . . . Fabricators . | . . . Repair Stations . | . . . Recycling Units . | . . . Scanalyzers . | . . . Garrison Access . | . . . Data Cores Recovered . | . . . Used . | . . . Hacking Detections 8 | . 8 . Full Trace Events . | . . . Feedback Events . | . . . Feedback Blocked . | . . . Robot Schematics Acquired . | . . . Robots Built . | . . . Authchips . | . . . Time . | . . . Total Robot Build Rating . | . . . Part Schematics Acquired . | . . . Parts Built . | . . . Authchips . | . . . Time . | . . . Total Part Build Rating . | . . . Parts Repaired . | . . . Time . | . . . Parts Recycled . | . . . Recycled Matter 113 | . 113 . Retrieved Matter 113 | . 113 . Retrieved Components . | . . . Parts Scanalyzed . | . . . Part Schematics Acquired . | . . . Parts Damaged . | . . . Bothacking | -11 -10 -10 ------------ Run | Yrd Mat Min Used RIF Installer . | . . . Robots Hacked . | . . . Non-combat . | . . . Combat . | . . . Robot Hacks Applied . | . . . Relay Couplers Released . | . . . Fabnet Peak Effective % . | . . . Robots Rewired . | . . . Allies Hacked . | . . . Hacks Repelled . | . . . Allies | -11 -10 -10 -------- Run | Yrd Mat Min Total Allies . | . . . Largest Group . | . . . Highest-Rated Group . | . . . Highest-Rated Ally . | . . . Total Orders . | . . . Ally Attacks . | . . . Total Damage . | . . . Kills . | . . . Allies Corrupted . | . . . Allies Melted . | . . . Intel | -11 -10 -10 ------- Run | Yrd Mat Min Active Infowar (turns) 233 | . 133 100 Structural 110 | . 10 100 Seismic 123 | . 123 . Robot Analysis Total . | . . . Derelict Logs Recovered . | . . . Drone Launches . | . . . Drone Recoveries . | . . . Exploration | -11 -10 -10 ------------- Run | Yrd Mat Min Turns Passed 918 | 70 748 100 Spaces Moved 877 | 51 651 175 Core 9 | 9 . . Treads . | . . . Legs 486 | 42 434 10 Wheels . | . . . Hover . | . . . Flight 382 | . 217 165 Fastest Speed 37 | 50 37 37 Average Speed 83 | 107 92 41 Slowest Speed 120 | 120 120 120 Overloaded Moves . | . . . Propulsion Burnouts . | . . . Robots Hopped . | . . . Potential Cave-ins . | . . . Cave-ins Triggered . | . . . Exploration Rate (%) 40 | 4 85 31 Regions Visited 2 Branch Regions 1 Pre-discovered Areas . | . . . Known Exits Taken 1 | . 1 . Unknown Exits Taken 1 | 1 . . Scrap Searched . | . . . Spaces Dug 6 | . 6 . Terrain Destroyed 69 | . 69 . Melee . | . . . Projectile . | . . . AOE 69 | . 69 . Terrain Rammed . | . . . Walls Destroyed . | . . . Machines Disabled . | . . . Actions | -11 -10 -10 --------- Run | Yrd Mat Min Total 985 | 66 730 189 Wait 7 | . 5 2 Move 875 | 50 650 175 Hop . | . . . Pick Up 22 | 10 12 . Fast Attach 1 | . 1 . Attach 11 | 6 4 1 Detach . | . . . Swap 15 | . 14 1 Drop 10 | . 10 . Fire 44 | . 34 10 Melee . | . . . Ram . | . . . Kick . | . . . Crush . | . . . Escape Stasis . | . . . Rewire . | . . . Trap . | . . . Miscellaneous . | . . . Route ------- -11/Scrapyard -10/Materials (discovered 4 exits: [*Mat x3] / *Min) -10/Mines History --------- Turn | Location | Event 7 | -11/Scrapyard | Discovered new exit (range 15) 71 | -11/Scrapyard | Entered Materials 297 | -10/Materials | Discovered new exit (range 8) 305 | -10/Materials | Build established: Mutant 398 | -10/Materials | Core integrity fell below 50% 528 | -10/Materials | Discovered new exit (range 16) 744 | -10/Materials | Discovered new exit (range 12) 777 | -10/Materials | Identified exit to Mines 779 | -10/Materials | Discovered new exit (range 13) 819 | -10/Materials | Entered Mines 820 | -10/Mines | Assembled infested the area 919 | -10/Mines | Core integrity fell below 20% 919 | -10/Mines | Destroyed by D-53 Grenadier with Mini Grenade Launcher Last Messages --------------- >>Access(Branch) Found 1 branch access point: (36,37) Mines Map updated. EXIT=FOUND Dropped Seismic Detector. Acquired Structural Scanner. W-16 Scout sends out distress signal. LOCATION=MINES GOAL=ESCAPE Something is scanning the area. ALERT: Infestation in the mines, dispatching Demolisher response squad. K-01 Serf collects debris. [Achievement: Hunted] [Achievement: Slippery One] Flight Unit destroyed. as-63043 suffers critical hit (Destroy). Destroyed Asb. F-torch. T-07 Excavator destroyed. Map ----- +----------------------------------------------------+ | ?????????????????????????????????????####### | | ???????????????????????????????????######### | | ??????????????????????????????############# | | ?????????????????????????????######## ### | | ????????????????????????????#### ## # | | ????????????????????????????### ## | | ????????????????????????????## #### | | ????????????????????????????## ######### | | ????????????????????????????### #######?? | | ????????????????????????????### #### ## #####??? | | ??????? ???????????????## #### ### #####?? | | ???# ???????????????## #### ### ###?? | | ??### ???????????????## #### | | ??### #??????????????## ######### # | | ??## ##?????????####### ########### | | ??## ##?????????####### ##?????##### | | ??## ##?????????## ##???????#### # | | ??## ##?????????## #######????????######## | | ??## ##?????????## #######?????????####### | | ??## ##?????????## ###???????????????????? | | ??### ##??######### #####?????????????????? | | ####### ##??######### ####?????????????????? | | ######## ## #### ## ##?????????????????? | | #### #### ##?????????????????? | | #### d % = ##?????????????????? | | #### r rd @ ##?????????????????? | | ######## ###?????????????????? | | #### ### ######## ###?????????????????? | | #### ##????####### ## ##??????????????????? | | # ###### ##????????#### ######??????????????????? | | # ###### ?????????##########??????????????????? | | # ##??# ??????????####???????????????????????? | | ##??? ????????????????????????????????????? | | # ##?## ?????????????????????????????????? | | # ???## ### ?????????????????????????????????? | | # ???## " #####?????????????????????????????????? | | ???### ####???????????????????????????????????? | | ???########????????????????????????????????????? | | ????######?????????????????????????????????????? | | ???????????????????????????????????????????????? | | ????????????????????????????????????????????????? | | ?????????????????????????????????????????????????? | | ?????????????????????????????????????????????????? | | ?????????????????????????????????????????????????? | | ?????????????????????????????????????????????????? | | ?????????????????????????????????????????????????? | | ?????????????????????????????????????????????????? | | ?????????????????????????????????????????????????? | | ?????????????????????????????????????????????????? | | ?????????????????????????????????????????????????? | +----------------------------------------------------+ Best States ------------- Heat Dissipation 39 Energy Generation 10 Energy Capacity 125 Matter Stores 284 Matter Capacity 300 Sight Range 16 Terrain Scan Density 10 Power Shielding 33 Evasion (%) 62 Item Schematics ----------------- None Robot Schematics ------------------ None Fabricated ------------ Nothing Repaired ---------- Nothing Alien Tech Used ----------------- None Achievements -------------- Hunted Shopping List Slippery One Storm Trooper Challenges ------------ None Game ------ Seed WaveSegregatorShotgun Manual? 0 Play Time 00:24:46 Cumulative 2.5 hours Start 2025.07.26 @ 22:42:02 End 2025.07.26 @ 23:04:14 Sessions 1 Manual Loads 0 Difficulty Rogue Special Mode None Game No. 4 Rogue 4 Adventurer 0 Explorer 0 Win Type - Total 0 Types 0/0/0/0/0/0/0/0/0/0 Lore% 7 Gallery% 4 Achievement% 4 Wizard Run 0 Options --------- Layout 1 ASCII 0 Keyboard 0 Movement Mouse Keybinds 0 Fullscreen 2 Font 48/Smallcaps Map View 50x35 Zoom Use 0% Tactical HUD 0 Map Filters NONE Filters NONE Steam 1 RUN: ff1d56ac-07ab-4db6-9391-b96d53dca5ea